bitfinex/quotes_BTCUSD_20220103
["timestamp","ask_amount","ask_price","bid_price","bid_amount"]
[1641242752116,0.054538,45843.0,45832.0,0.42817891]
[1641242752516,0.054538,45843.0,45835.0,0.2404404]
[1641242752720,0.054538,45843.0,45837.0,0.054536]
[1641242753222,0.0545363,45844.0,45835.0,0.2904404]
[1641242754019,0.0545363,45844.0,45838.0,0.054535]
[1641242754020,0.3208723,45842.0,45838.0,0.054535]
[1641242754222,0.3208723,45842.0,45834.0,0.008533]
[1641242754420,0.074305,45839.0,45834.0,0.008533]
[1641242754619,0.1636461,45837.0,45834.0,0.008533]
[1641242754849,0.47387065,45836.0,45834.0,0.008533]
[1641242755048,2.16430665,45835.0,45834.0,0.008533]
[1641242755248,2.51731165,45835.0,45834.0,0.008533]
[1641242755448,1.973005,45835.0,45817.0,0.21949398]
[1641242755647,0.054558,45827.0,45817.0,0.11038898]
[1641242755850,0.054558,45827.0,45811.0,0.001]
[1641242756046,0.0047,45833.0,45813.0,0.00120135]
[1641242756248,0.0047,45833.0,45827.0,0.054547]
[1641242756448,0.50786377,45832.0,45825.0,0.109094]
[1641242756647,0.109102,45835.0,45829.0,0.08014212]
[1641242756849,0.05454598,45833.0,45829.0,0.08014212]
[1641242757047,0.322166,45838.0,45823.0,0.33392371]
[1641242757247,0.322166,45838.0,45829.0,0.054547]
[1641242757647,0.26444014,45837.0,45829.0,0.054547]
[1641242757850,0.26444014,45837.0,45827.0,0.70419153]
[1641242758045,0.26444014,45837.0,45832.0,0.07799268]
[1641242758249,0.26444014,45837.0,45823.0,0.33392371]
[1641242758529,0.26444014,45837.0,45830.0,0.054545]
[1641242758728,0.3325682,45836.0,45830.0,0.054545]
[1641242758927,0.10908806,45839.0,45830.0,0.054545]
[1641242759128,2.1321,45845.0,45833.0,0.07955067]
[1641242759328,0.9565,45845.0,45833.0,0.07955067]
[1641242759927,0.9565,45845.0,45826.0,0.35112583]
[1641242759928,0.23942069,45839.0,45831.0,0.26916488]
[1641242760129,0.23942069,45839.0,45828.0,0.109079]
[1641242760927,0.23942069,45839.0,45829.0,0.054549]
[1641242761134,0.054549,45833.0,45829.0,0.054549]
[1641242761327,0.054549,45833.0,45829.0,0.109094]
[1641242761828,0.039549,45833.0,45829.0,0.109094]
[1641242762029,0.10909633,45837.0,45829.0,0.109094]
[1641242762260,0.05454279,45836.0,45833.0,0.054541]
[1641242762654,0.05454279,45836.0,45827.0,0.24509467]
[1641242763054,0.23942069,45839.0,45827.0,0.24509467]
[1641242763255,0.054551,45838.0,45825.0,0.08955107]
[1641242763455,0.05455,45831.0,45827.0,0.05455]
[1641242763659,0.30439228,45831.0,45827.0,0.05455]
[1641242763856,0.30439228,45831.0,45824.0,0.00121708]
[1641242764054,0.30439228,45831.0,45822.0,0.37990707]
[1641242764354,0.30439228,45831.0,45822.0,0.109102]
[1641242764554,0.30439228,45831.0,45825.0,0.054553]
[1641242764955,0.35439228,45831.0,45817.0,0.11037882]
[1641242765157,0.24984228,45831.0,45819.0,0.31120133]
[1641242765557,0.109112,45830.0,45822.0,0.054556]
[1641242766501,0.10911827,45826.0,45822.0,0.10911]
[1641242766898,0.05455827,45826.0,45822.0,0.054556]
[1641242767100,0.46984228,45831.0,45824.0,0.07069182]
[1641242767302,0.2745473,45831.0,45826.0,0.054551]
[1641242767500,0.22,45831.0,45826.0,0.054551]
[1641242767700,0.22,45831.0,45829.0,0.054545]
[1641242768400,0.22,45831.0,45830.0,0.27916742]
[1641242768599,0.22,45831.0,45829.0,0.109089]
[1641242768803,0.22,45831.0,45829.0,0.054544]
[1641242769400,0.22,45831.0,45823.0,0.109103]
[1641242769602,0.49905442,45831.0,45826.0,0.054554]
[1641242769860,0.22,45831.0,45826.0,0.054554]
[1641242770060,0.22,45831.0,45828.0,0.054545]
[1641242771161,0.22,45831.0,45829.0,0.054543]
[1641242772461,0.05454751,45830.0,45829.0,0.054543]
[1641242772960,0.27455,45831.0,45829.0,0.054543]
[1641242772961,0.22,45831.0,45829.0,0.054543]
[1641242773616,0.22,45831.0,45829.0,0.109089]
[1641242773817,0.22,45831.0,45829.0,0.054543]
[1641242776320,0.22,45831.0,45829.0,0.109089]
[1641242776622,0.205,45831.0,45829.0,0.109089]
[1641242776822,0.205,45831.0,45830.0,0.07822948]
[1641242777261,0.205,45831.0,45830.0,0.38486326]
[1641242777657,0.205,45831.0,45830.0,0.38361128]
[1641242777856,0.205,45831.0,45829.0,0.109089]
[1641242778257,0.205,45831.0,45829.0,0.054543]
[1641242779461,0.205,45831.0,45829.0,0.109089]
[1641242779859,0.205,45831.0,45830.0,0.322166]
[1641242780059,0.205,45831.0,45830.0,0.563657]
[1641242780258,0.205,45831.0,45830.0,0.241491]
[1641242780469,0.205,45831.0,45830.0,0.53876404]
[1641242781113,0.4136,45839.0,45835.0,0.054532]
[1641242781316,0.4136,45839.0,45835.0,0.094732]
[1641242781516,0.4136,45839.0,45835.0,0.194732]
[1641242781712,0.4136,45839.0,45835.0,0.1402]
[1641242782115,0.4136,45839.0,45838.0,0.29105868]
[1641242782413,0.05453065,45845.0,45838.0,0.29105868]
[1641242782613,0.66702383,45847.0,45841.0,0.05453]
[1641242782815,0.4136,45848.0,45841.0,0.163588]
[1641242783017,0.4086,45848.0,45846.0,0.0725898]
[1641242783516,0.61249384,45850.0,45846.0,0.44669779]
[1641242783714,0.61249384,45850.0,45847.0,0.26778083]
[1641242783915,0.61249384,45850.0,45848.0,0.05577406]
[1641242784114,0.61249384,45853.0,45849.0,0.35668162]
[1641242784316,0.61249384,45853.0,45849.0,0.44688162]
[1641242784617,0.61249384,45853.0,45852.0,0.294918]
[1641242784853,0.61249384,45861.0,45855.0,0.09535631]
[1641242785149,0.61249384,45861.0,45858.0,0.054512]
[1641242785453,0.61249384,45861.0,45852.0,0.0402]
[1641242785454,0.61249384,45861.0,45848.0,0.00125806]
[1641242785648,0.61249384,45861.0,45842.0,0.16356]
[1641242785649,1.30982036,45862.0,45842.0,0.16356]
[1641242785949,1.30982036,45862.0,45848.0,0.109048]
[1641242786148,1.30982036,45862.0,45850.0,0.054527]
[1641242786149,0.10905196,45856.0,45850.0,0.054527]
[1641242786348,0.005,45861.0,45849.0,0.24376434]
[1641242786552,0.61249384,45858.0,45851.0,0.07647907]
[1641242786749,0.05451862,45857.0,45851.0,0.07647907]
[1641242786948,0.05451862,45857.0,45852.0,0.109037]
[1641242787151,0.30343834,45855.0,45852.0,0.109037]
[1641242787747,0.61249384,45859.0,45852.0,0.109037]
[1641242787946,0.61249384,45859.0,45852.0,0.159037]
[1641242788147,0.61249384,45859.0,45853.0,0.109032]
[1641242788600,0.054519,45858.0,45854.0,0.054517]
[1641242788805,0.43017874,45858.0,45854.0,0.054517]
[1641242789000,0.37565974,45858.0,45856.0,0.25950051]
[1641242789202,1.24609384,45862.0,45854.0,0.054517]
[1641242789400,1.24609384,45862.0,45853.0,0.109032]
[1641242789601,1.24609384,45862.0,45854.0,0.054521]
[1641242790202,1.24609384,45862.0,45853.0,0.109032]
[1641242790402,0.32300258,45858.0,45853.0,0.109032]
[1641242790705,0.05451819,45857.0,45853.0,0.109032]
[1641242790900,1.35512988,45862.0,45853.0,0.163551]
[1641242791105,1.35512988,45862.0,45853.0,0.159032]
[1641242791703,0.054517,45861.0,45853.0,0.159032]
[1641242791900,0.05451624,45858.0,45853.0,0.159032]
[1641242792104,0.05451624,45858.0,45854.0,0.054516]
[1641242793855,0.05451624,45858.0,45854.0,0.06305]
[1641242795255,0.10903724,45858.0,45854.0,0.06305]
[1641242795459,0.05451624,45858.0,45854.0,0.06305]
[1641242795658,0.05451422,45860.0,45854.0,0.06305]
[1641242795860,0.05451422,45860.0,45856.0,0.054514]
[1641242796111,0.05451422,45860.0,45859.0,0.29373002]
[1641242796813,0.6336,45862.0,45859.0,0.29373002]
[1641242797011,0.6336,45862.0,45860.0,0.054507]
[1641242797814,0.6336,45862.0,45860.0,0.109014]
[1641242798014,0.6336,45862.0,45860.0,0.054507]
[1641242798413,0.6336,45862.0,45857.0,0.054518]
[1641242798613,0.353005,45861.0,45857.0,0.054518]
[1641242798815,0.6336,45862.0,45857.0,0.054518]
[1641242799012,0.05451893,45859.0,45857.0,0.054518]
[1641242800451,0.05451893,45859.0,45854.0,0.037465]
[1641242800452,0.68599913,45858.0,45854.0,0.037465]
[1641242800657,0.05452382,45857.0,45831.0,0.2851]
[1641242800855,0.393205,45856.0,45836.0,0.00125799]
[1641242801054,0.36280406,45855.0,45836.0,0.00125799]
[1641242801252,0.31397518,45850.0,45842.0,0.26781873]
[1641242801452,0.31397518,45850.0,45844.0,0.109054]
[1641242801652,0.05452912,45849.0,45846.0,0.054531]
[1641242802453,0.05452912,45849.0,45846.0,0.05440649]
[1641242802657,0.05452912,45849.0,45847.0,0.65434]
[1641242802856,0.36850127,45850.0,45847.0,0.65434]
[1641242803916,0.05452609,45850.0,45847.0,0.70434]
[1641242804116,0.05452415,45852.0,45847.0,0.70434]
[1641242804317,0.05452415,45852.0,45848.0,0.054523]
[1641242804617,0.38224713,45859.0,45852.0,0.08196096]
[1641242804817,0.38224713,45859.0,45853.0,0.65426]
[1641242805017,0.24802386,45856.0,45853.0,0.65426]
[1641242805222,0.38224713,45859.0,45853.0,0.65426]
[1641242806420,0.38224713,45859.0,45854.0,0.054519]
[1641242806617,0.38224713,45859.0,45855.0,0.65424]
[1641242807259,0.32772613,45859.0,45855.0,0.65424]
[1641242807455,0.4136,45862.0,45857.0,0.054517]
[1641242808055,0.22,45859.0,45857.0,0.054517]
[1641242808254,0.50462734,45859.0,45857.0,0.054517]
[1641242808456,0.29761045,45858.0,45857.0,0.054517]
[1641242808655,0.29761045,45858.0,45857.0,0.70421]
[1641242808855,0.50462734,45859.0,45857.0,0.70421]
[1641242809556,1.73186142,45858.0,45857.0,0.70421]
[1641242809756,2.08486642,45858.0,45857.0,0.70421]
[1641242810155,0.10904966,45858.0,45857.0,0.70421]
[1641242810359,0.55915151,45859.0,45857.0,0.70421]
[1641242811600,0.27452417,45859.0,45857.0,0.70421]
[1641242812001,0.22,45859.0,45857.0,0.70421]
[1641242812600,0.47313014,45859.0,45857.0,0.70421]
[1641242813200,0.58216894,45859.0,45857.0,0.70421]
[1641242813600,1.383005,45858.0,45857.0,0.70421]
[1641242813999,1.373005,45858.0,45857.0,0.70421]
[1641242815450,1.853005,45858.0,45857.0,0.70421]
[1641242815654,1.373005,45858.0,45857.0,0.70421]
[1641242816555,0.353005,45856.0,45838.0,0.109061]
[1641242816752,0.353005,45856.0,45831.0,0.32149382]
[1641242816753,0.054538,45846.0,45831.0,0.32149382]
[1641242816954,0.05899,45847.0,45828.0,0.32149382]
[1641242817150,0.05899,45847.0,45829.0,0.55444]
[1641242817656,0.25466088,45837.0,45831.0,0.109084]
[1641242817956,0.40941401,45837.0,45832.0,0.55451]
[1641242818257,0.353005,45836.0,45832.0,0.55451]
[1641242818817,0.054556,45834.0,45832.0,0.55451]
[1641242819013,1.873005,45833.0,45832.0,0.55451]
[1641242820716,1.923005,45833.0,45832.0,0.55451]
[1641242820918,3.079005,45833.0,45832.0,0.55451]
[1641242823067,1.923005,45833.0,45832.0,0.55451]
[1641242823667,0.353005,45833.0,45832.0,0.55451]
[1641242824268,0.054556,45834.0,45832.0,0.55451]
[1641242824469,0.05455174,45835.0,45832.0,0.55451]
[1641242824869,0.0253418,45835.0,45832.0,0.55451]
[1641242825070,0.05454539,45837.0,45832.0,0.55451]
[1641242826411,0.24249007,45835.0,45832.0,0.55451]
[1641242826611,1.38249384,45833.0,45832.0,0.55451]
[1641242826809,1.73549884,45833.0,45832.0,0.55451]
[1641242827610,1.123005,45833.0,45832.0,0.55451]
[1641242829211,1.343005,45833.0,45832.0,0.55451]
[1641242831051,1.308405,45833.0,45832.0,0.55451]
[1641242832054,1.458405,45833.0,45832.0,0.55451]
[1641242832254,2.34969933,45833.0,45832.0,0.55451]
[1641242832652,1.308405,45833.0,45832.0,0.55451]
[1641242832855,0.9554,45833.0,45832.0,0.55451]
[1641242833252,1.4654,45833.0,45832.0,0.55451]
[1641242833499,1.868405,45833.0,45832.0,0.55451]
[1641242833698,1.918405,45833.0,45832.0,0.55451]
[1641242833900,1.818405,45833.0,45832.0,0.55451]
[1641242834198,0.22,45833.0,45832.0,0.55451]
[1641242835200,0.99,45833.0,45832.0,0.55451]
[1641242836100,0.22,45833.0,45832.0,0.55451]
[1641242837260,1.17,45833.0,45832.0,0.55451]
[1641242837651,0.22,45833.0,45832.0,0.55451]
[1641242838052,0.74,45833.0,45832.0,0.55451]
[1641242838454,1.03165238,45833.0,45832.0,0.55451]
[1641242841114,1.24,45833.0,45832.0,0.55451]
[1641242841315,1.0314116,45833.0,45832.0,0.55451]
[1641242841715,1.89386774,45833.0,45832.0,0.55451]
[1641242841921,1.60245614,45833.0,45832.0,0.55451]
[1641242844760,0.22,45833.0,45832.0,0.55451]
[1641242844953,0.89,45833.0,45832.0,0.55451]
[1641242845155,0.89,45833.0,45832.0,0.563043]
[1641242845156,0.22,45833.0,45832.0,0.563043]
[1641242845755,0.82389092,45833.0,45832.0,0.85630695]
[1641242846156,0.82389092,45833.0,45832.0,0.90630695]
[1641242846655,0.22,45833.0,45832.0,0.85630695]
[1641242847858,0.22,45833.0,45832.0,0.91637795]
[1641242848499,0.22,45833.0,45832.0,0.86637795]
[1641242849301,0.22,45833.0,45832.0,0.14822195]
[1641242849302,2.15732588,45833.0,45832.0,0.14822195]
[1641242849503,2.47477802,45833.0,45823.0,0.104553]
[1641242849706,0.00127594,45827.0,45823.0,0.05]
[1641242849902,0.00127594,45827.0,45813.0,1.09236775]
[1641242849903,0.0466966,45825.0,45813.0,1.09236775]
[1641242850105,0.35730327,45824.0,45813.0,1.09236775]
[1641242850302,0.61081731,45817.0,45813.0,1.09236775]
[1641242850502,0.71996528,45817.0,45813.0,1.09236775]
[1641242850703,0.98681603,45817.0,45813.0,1.09236775]
[1641242850903,0.98681603,45817.0,45810.0,0.00055]
[1641242850904,0.054577,45815.0,45810.0,0.00055]
[1641242851107,0.10915166,45814.0,45810.0,0.00055]
[1641242851304,0.353013,45813.0,45811.0,0.00089]
[1641242851503,0.503013,45813.0,45811.0,0.00089]
[1641242851905,0.557597,45813.0,45811.0,0.00089]
[1641242852104,1.69175062,45812.0,45811.0,0.00089]
[1641242852369,0.86476362,45812.0,45811.0,0.00089]
[1641242852568,0.96476362,45812.0,45811.0,0.00089]
[1641242852968,1.453013,45811.0,45800.0,0.00661]
[1641242853269,0.05458449,45804.0,45800.0,0.00661]
[1641242853467,0.30920957,45807.0,45800.0,0.00661]
[1641242853670,0.31048201,45807.0,45800.0,0.00661]
[1641242854167,0.59872301,45807.0,45800.0,0.00661]
[1641242854368,0.054584,45804.0,45800.0,0.00661]
[1641242854570,0.40479062,45810.0,45800.0,0.00661]
[1641242854770,0.00121976,45815.0,45800.0,0.00661]
[1641242854971,1.4866,45816.0,45800.0,0.00661]
[1641242855168,0.29083542,45815.0,45809.0,0.08508202]
[1641242855370,0.86245614,45817.0,45811.0,0.44265248]
[1641242855569,0.86245614,45817.0,45811.0,0.054562]
[1641242855768,0.82389092,45813.0,45811.0,0.054562]
[1641242856015,0.22,45813.0,45811.0,0.054562]
[1641242857217,0.22,45813.0,45812.0,1.17546583]
[1641242857416,0.1969,45813.0,45812.0,0.34546584]
[1641242857622,0.1969,45813.0,45812.0,0.44546584]
[1641242858017,0.1969,45813.0,45812.0,0.55593211]
[1641242858221,0.19210844,45813.0,45812.0,0.55593211]
[1641242860285,0.18210844,45813.0,45812.0,0.55593211]
[1641242862074,0.18175841,45813.0,45812.0,0.55593211]
[1641242862878,0.18175841,45813.0,45812.0,0.25066627]
[1641242863174,0.18175841,45813.0,45812.0,0.15066627]
[1641242864215,0.18175841,45813.0,45812.0,0.45424143]
[1641242864614,0.18175841,45813.0,45812.0,0.55424143]
[1641242869464,0.18175841,45813.0,45812.0,0.25066627]
[1641242869664,0.18175841,45813.0,45812.0,0.15066627]
[1641242870865,0.18175841,45813.0,45812.0,0.46420767]
[1641242871113,0.18175841,45813.0,45812.0,0.56420767]
[1641242871617,0.0001,45820.0,45819.0,0.00126839]
[1641242871816,0.0001,45820.0,45819.0,0.44637048]
[1641242872018,0.0001,45830.0,45820.0,0.00647365]
[1641242872216,0.0001,45830.0,45829.0,0.00123375]
[1641242872417,0.0001,45830.0,45829.0,0.80290959]
[1641242872617,0.0001,45830.0,45829.0,1.04141959]
[1641242872817,0.0001,45830.0,45829.0,1.09141959]
[1641242873417,0.93435372,45845.0,45835.0,0.3279999]
[1641242873619,0.00798811,45839.0,45837.0,0.05453]
[1641242874317,1.2064,45849.0,45837.0,0.05453]
[1641242874779,0.24688439,45848.0,45837.0,0.109061]
[1641242874969,0.24688439,45848.0,45839.0,0.28790945]
[1641242875170,0.24688439,45848.0,45839.0,0.34243845]
[1641242876373,0.2201,45840.0,45839.0,0.34243845]
[1641242879416,0.2201,45840.0,45839.0,0.34262906]
[1641242879616,0.2201,45840.0,45839.0,0.05471961]
[1641242880620,0.2151,45840.0,45839.0,0.34831467]
[1641242881219,0.2151,45840.0,45839.0,0.05471961]
[1641242881819,0.2151,45840.0,45839.0,0.00019061]
[1641242882019,0.2151,45840.0,45839.0,4.019e-05]
[1641242885166,0.2151,45840.0,45839.0,0.10909619]
[1641242885566,0.2151,45840.0,45839.0,0.41135477]
[1641242885767,0.2151,45840.0,45839.0,0.11037323]
[1641242886019,0.2151,45840.0,45839.0,0.26037323]
[1641242886225,0.2151,45840.0,45839.0,0.10909619]
[1641242886424,0.21399875,45840.0,45839.0,0.15909619]
[1641242886623,0.16399875,45840.0,45839.0,0.15909619]
[1641242887021,0.14217975,45840.0,45839.0,0.15909619]
[1641242887221,0.4146,45849.0,45839.0,0.15909619]
[1641242887421,0.4146,45849.0,45843.0,0.054529]
[1641242888421,0.4146,45849.0,45843.0,0.063062]
[1641242889778,0.4146,45849.0,45845.0,0.09846492]
[1641242889973,0.4146,45849.0,45847.0,0.054524]
[1641242891775,0.4096,45849.0,45847.0,0.054524]
[1641242892175,0.4096,45849.0,45845.0,0.00024291]
[1641242892475,0.0001,45850.0,45845.0,0.05476991]
[1641242892877,0.0001,45850.0,45845.0,0.05476791]
[1641242893921,0.0001,45850.0,45847.0,0.054525]
[1641242898078,0.0001,45850.0,45849.0,0.00127954]
[1641242898278,0.60673703,45853.0,45849.0,0.05579654]
[1641242898478,0.60673703,45854.0,45849.0,0.00127954]
[1641242898879,0.60673703,45854.0,45845.0,0.24827638]
[1641242899079,0.60673703,45855.0,45845.0,0.24827638]
[1641242899382,0.60673703,45855.0,45845.0,0.34827638]
[1641242899579,0.60673703,45855.0,45848.0,0.054518]
[1641242899781,0.60673703,45855.0,45851.0,0.05452]
[1641242900683,0.4136,45856.0,45851.0,0.05452]
[1641242901421,0.4136,45856.0,45851.0,0.05482082]
[1641242901621,0.4136,45856.0,45853.0,0.054517]
[1641242904024,0.4136,45856.0,45851.0,0.00030082]
[1641242904424,0.468125,45856.0,45851.0,0.00030082]
[1641242904627,0.4136,45856.0,45851.0,0.00030082]
[1641242906175,0.46812219,45856.0,45851.0,0.00030082]
[1641242906376,0.4136,45856.0,45851.0,0.00030082]
[1641242906574,0.054524,45854.0,45851.0,0.00030082]
[1641242907378,0.16357762,45854.0,45851.0,0.00030082]
[1641242907576,0.353013,45853.0,45851.0,0.00030082]
[1641242909929,0.10904762,45854.0,45851.0,0.00030082]
[1641242910131,0.353013,45853.0,45851.0,0.00030082]
[1641242910330,0.10904762,45854.0,45851.0,0.00030082]
[1641242910533,0.353013,45853.0,45851.0,0.00030082]
[1641242910830,0.10904762,45854.0,45851.0,0.00030082]
[1641242912368,0.10904762,45854.0,45851.0,7.908e-05]
[1641242912565,0.10904762,45854.0,45852.0,7.908e-05]
[1641242913371,2.1727632,45853.0,45843.0,0.00121632]
[1641242913566,2.1727632,45853.0,45837.0,0.30764128]
[1641242913567,0.10907175,45845.0,45836.0,0.00800786]
[1641242913768,0.47486068,45844.0,45836.0,0.00800786]
[1641242913970,0.054543,45842.0,45836.0,0.00800786]
[1641242914166,0.054543,45842.0,45832.0,0.054542]
[1641242914367,0.054543,45842.0,45833.0,0.29930863]
[1641242914368,0.23990105,45839.0,45833.0,0.29930863]
[1641242914567,0.05454117,45837.0,45832.0,0.054542]
[1641242914766,0.34898508,45839.0,45832.0,0.054542]
[1641242915567,0.40352808,45839.0,45832.0,0.054542]
[1641242915767,0.05454155,45837.0,45832.0,0.054542]
[1641242916046,0.34898508,45839.0,45826.0,0.00127956]
[1641242916047,0.48569672,45838.0,45826.0,0.00127956]
[1641242916246,0.48569672,45838.0,45818.0,0.00127065]
[1641242916247,0.04617395,45836.0,45818.0,0.00127065]
[1641242916445,0.6827849,45835.0,45809.0,0.0049]
[1641242916645,0.4268907,45831.0,45810.0,1.0936175]
[1641242916845,0.05455654,45824.0,45817.0,0.0867727]
[1641242917043,0.36094249,45824.0,45812.0,0.31418789]
[1641242917243,0.30638595,45824.0,45816.0,0.05456]
[1641242917649,0.3004024,45821.0,45810.0,0.31461939]
[1641242917848,0.3004024,45821.0,45803.0,1.84041775]
[1641242917849,0.05456543,45816.0,45803.0,1.84041775]
[1641242918044,0.3004024,45821.0,45803.0,0.82738008]
[1641242918045,0.2993102,45815.0,45803.0,0.82738008]
[1641242918247,0.15982875,45816.0,45806.0,0.054681]
[1641242918444,0.28728388,45815.0,45806.0,0.054681]
[1641242918646,0.34185488,45815.0,45806.0,0.054681]
[1641242918847,0.28728388,45815.0,45806.0,0.00011]
[1641242919149,0.16109157,45816.0,45806.0,0.00011]
[1641242919150,0.05456987,45812.0,45806.0,0.00011]
[1641242919347,0.29975897,45818.0,45806.0,0.00011]
[1641242919549,0.32375967,45822.0,45806.0,0.00011]
[1641242919789,0.32375967,45822.0,45807.0,0.08406987]
[1641242919983,0.37832367,45822.0,45807.0,0.08406987]
[1641242920187,0.05456429,45817.0,45807.0,0.08406987]
[1641242920384,0.05456429,45817.0,45812.0,0.2563601]
[1641242920783,1.2438,45823.0,45814.0,0.40039799]
[1641242920983,0.61163703,45824.0,45814.0,0.40039799]
[1641242921488,0.60673703,45824.0,45821.0,0.07136444]
[1641242921685,0.60673703,45826.0,45821.0,0.07136444]
[1641242921884,0.60673703,45826.0,45821.0,0.12591844]
[1641242922284,0.60673703,45826.0,45821.0,0.054554]
[1641242922689,1.178,45829.0,45821.0,0.054554]
[1641242922886,0.60673703,45832.0,45829.0,0.3555174]
[1641242923285,0.60673703,45832.0,45829.0,0.44203452]
[1641242923719,0.60673703,45832.0,45821.0,0.00018048]
[1641242923720,0.05454794,45831.0,45821.0,0.00018048]
[1641242924221,0.86245614,45836.0,45825.0,0.054549]
[1641242924222,0.60673703,45835.0,45825.0,0.054549]
[1641242924824,1.60353703,45837.0,45827.0,0.32970135]
[1641242925024,1.90925613,45837.0,45829.0,0.07159311]
[1641242925328,0.05454684,45832.0,45826.0,0.054548]
[1641242925526,0.054552,45832.0,45823.0,0.159091]
[1641242926126,0.054552,45832.0,45823.0,0.109091]
[1641242926326,0.26688836,45828.0,45821.0,0.08242063]
[1641242926523,0.16365918,45832.0,45821.0,0.08242063]
[1641242926726,0.16365618,45832.0,45821.0,0.08242063]
[1641242926925,0.1603573,45836.0,45821.0,0.08242063]
[1641242926926,0.60673703,45834.0,45821.0,0.08242063]
[1641242927362,0.60673703,45834.0,45822.0,0.109094]
[1641242927564,0.60673703,45834.0,45825.0,0.24458505]
[1641242927764,0.05454673,45833.0,45825.0,0.24458505]
[1641242927968,0.05454673,45833.0,45827.0,0.054546]
[1641242928565,0.22,45833.0,45827.0,0.054546]
[1641242929066,0.22,45833.0,45821.0,0.08242063]
[1641242930268,0.22,45833.0,45823.0,0.30524184]
[1641242930570,0.37261877,45843.0,45841.0,80.74150841]
[1641242930772,1.0398,45842.0,45841.0,80.74150841]
[1641242931020,0.2,45842.0,45841.0,80.74150841]
[1641242931219,1.356,45842.0,45841.0,80.74150841]
[1641242931723,1.410554,45842.0,45841.0,80.74150841]
[1641242932121,1.510554,45842.0,45841.0,80.74150841]
[1641242932322,1.71883933,45842.0,45841.0,80.74150841]
[1641242932522,1.61883933,45842.0,45841.0,80.74150841]
[1641242934025,1.61883933,45842.0,45841.0,80.74158263]
[1641242935577,0.20828533,45842.0,45841.0,80.74158263]
[1641242935778,0.37688659,45842.0,45841.0,80.74158263]
[1641242935978,0.20828533,45842.0,45841.0,80.74158263]
[1641242936773,0.42828533,45842.0,45841.0,80.74158263]
[1641242937376,0.47828533,45842.0,45841.0,80.74158263]
[1641242937679,0.62828533,45842.0,45841.0,80.73658263]
[1641242937877,0.57828533,45842.0,45841.0,80.73658263]
[1641242938079,0.254546,45842.0,45841.0,80.73658263]
[1641242938279,1.410546,45842.0,45841.0,80.73658263]
[1641242939725,1.410546,45842.0,45841.0,80.3001495]
[1641242939925,0.254546,45842.0,45841.0,80.3001495]
[1641242940224,0.139546,45842.0,45841.0,80.3001495]
[1641242940827,0.18275323,45842.0,45841.0,80.3001495]
[1641242941227,1.32966999,45842.0,45841.0,80.3001495]
[1641242941627,1.42966999,45842.0,45841.0,80.3001495]
[1641242942470,0.239546,45842.0,45841.0,80.3001495]
[1641242942669,0.239546,45842.0,45841.0,80.2951495]
[1641242942868,0.10910863,45843.0,45841.0,80.2951495]
[1641242943473,0.09910863,45843.0,45841.0,80.2951495]
[1641242944069,0.14910863,45843.0,45841.0,80.2951495]
[1641242944270,0.20365363,45843.0,45841.0,80.2951495]
[1641242946017,1.06610977,45843.0,45841.0,80.2951495]
[1641242947316,2.22210977,45843.0,45841.0,80.2951495]
[1641242947516,1.45865363,45843.0,45841.0,80.2951495]
[1641242948118,2.01845614,45842.0,45841.0,80.2951495]
[1641242949418,2.38823968,45842.0,45841.0,80.2951495]
[1641242950572,2.43823968,45842.0,45841.0,80.2951495]
[1641242950772,2.38823968,45842.0,45841.0,80.2951495]
[1641242950971,2.38823968,45842.0,45841.0,80.2901495]
[1641242951170,1.206,45842.0,45841.0,80.2901495]
[1641242951773,1.256,45842.0,45841.0,80.2901495]
[1641242952976,1.256,45842.0,45841.0,7.422e-05]
[1641242953176,1.609013,45842.0,45841.0,7.422e-05]
[1641242953829,2.40309628,45842.0,45841.0,7.422e-05]
[1641242954829,1.559013,45842.0,45841.0,7.422e-05]
[1641242955230,1.709013,45842.0,45841.0,7.422e-05]
[1641242955829,2.254013,45842.0,45841.0,7.422e-05]
[1641242956831,2.704013,45842.0,45841.0,7.422e-05]
[1641242957033,3.93629589,45842.0,45841.0,7.422e-05]
[1641242957462,3.48629589,45842.0,45841.0,7.422e-05]
[1641242957661,3.47629589,45842.0,45841.0,7.422e-05]
[1641242958264,0.00868144,45840.0,45837.0,8.1e-06]
[1641242958465,0.05,45837.0,45818.0,0.31257802]
[1641242958663,0.05456916,45826.0,45815.0,0.31257802]
[1641242958866,0.074249,45824.0,45815.0,0.31257802]
[1641242959065,0.074249,45824.0,45814.0,0.3047355]
[1641242959266,0.124249,45824.0,45815.0,0.31257802]
[1641242959566,0.054573,45818.0,45814.0,0.065]
[1641242959762,0.109145,45818.0,45814.0,0.065]
[1641242959962,0.05457192,45817.0,45814.0,0.065]
[1641242960162,0.10457192,45817.0,45814.0,0.065]
[1641242960568,0.10914492,45817.0,45816.0,0.31729746]
[1641242960766,0.9161,45830.0,45816.0,0.31859593]
[1641242961030,0.05455686,45826.0,45820.0,0.41515343]
[1641242961435,0.05455686,45826.0,45824.0,0.30812078]
[1641242961632,0.054558,45826.0,45824.0,0.30812078]
[1641242963233,0.054558,45826.0,45823.0,0.32442678]
[1641242963434,0.054558,45826.0,45820.0,0.41515343]
[1641242963635,0.054559,45824.0,45820.0,0.41515343]
[1641242963834,0.109117,45828.0,45816.0,0.00129847]
[1641242963835,0.05456,45827.0,45817.0,0.054561]
[1641242964033,0.05455924,45824.0,45816.0,0.00129847]
[1641242964238,0.30761315,45827.0,45813.0,0.008533]
[1641242964439,0.32499905,45821.0,45813.0,0.008533]
[1641242964876,0.054571,45819.0,45813.0,0.008533]
[1641242965278,0.054571,45819.0,45814.0,0.36557733]
[1641242965476,0.05456904,45817.0,45814.0,0.36557733]
[1641242966580,0.10913804,45817.0,45814.0,0.065]
[1641242966777,0.10913932,45817.0,45814.0,0.065]
[1641242967179,0.21828445,45817.0,45814.0,0.065]
[1641242967578,0.43828445,45817.0,45815.0,8.324e-05]
[1641242969935,0.43058445,45817.0,45815.0,8.324e-05]
[1641242970136,0.32143932,45817.0,45815.0,8.324e-05]
[1641242972293,0.001,46399.0,45815.0,8.324e-05]
[1641242972480,1.156,45831.0,45829.0,0.85305948]
[1641242972679,0.00128871,45837.0,45831.0,0.1999]
[1641242972879,0.10911689,45834.0,45831.0,0.1999]